Cogmind - Beta 14 @@@ ROGUE MODE // 2024.12.19 @ 16:56:47 Player: Julie Result: Destroyed by S-10 Pest with Light Assault Rifle Performance ------------- Evolutions (1) 500 Regions Visited (3) 600 Robots Destroyed (25) 125 Value Destroyed (578) 578 Prototype IDs (0) 0 Alien Tech Used (0) 0 Bonus (0) 0 TOTAL SCORE: 1803 Bonus ------- None Cogmind --------- Core Integrity 0/400 Matter 300/300 Energy 99/100 System Corruption 0% Temperature Cool (0) Movement Core (100) Ox1 Location -9/Materials Parts ------- > --- POWER (1) -------- (None) > --- PROPULSION (3) --- (None) > --- UTILITY (3) ------ Heat Sink Small Storage Unit > --- WEAPON (2) ------- (None) > --- INVENTORY (8) ---- Light Ion Engine Light Treads Aluminum Leg Medium Battery (150) Sensor Array Peak State ------------ > --- POWER ------------ Improved Ion Engine > --- PROPULSION ------- Aluminum Leg Aluminum Leg Aluminum Leg > --- UTILITY ---------- Heat Sink Small Storage Unit Improved Terrain Scanner > --- WEAPON ----------- Beam Rifle Katana > --- INVENTORY -------- Aluminum Leg Medium Battery Sensor Array [Rating: 15] Favorites ----------- Power Light Ion Engine Engine Light Ion Engine Propulsion Light Treads Treads Light Treads Leg Aluminum Leg Utility Small Storage Unit Device Improved Terrain Scanner Storage Small Storage Unit Processor Signal Interpreter Weapon Light Assault Rifle Energy Gun Medium Laser Ballistic Gun Light Assault Rifle Slashing Weapon Katana Build | -11 -10 -10 -9 ------- Run | Yrd Mat Min Mat Slots Evolved 2 | . . . 2 Power . | . . . . Propulsion 1 | . . . 1 Utility 1 | . . . 1 Weapon . | . . . . Parts Attached 23 | 8 2 1 12 Power 5 | 1 . . 4 Engine 5 | 1 . . 4 Core . | . . . . Reactor . | . . . . Propulsion 6 | 2 1 . 3 Treads 3 | 2 1 . . Leg 3 | . . . 3 Wheel . | . . . . Hover . | . . . . Flight . | . . . . Utility 7 | 3 1 1 2 Device 5 | 2 . 1 2 Storage 1 | 1 . . . Processor 1 | . 1 . . Hackware . | . . . . Protection . | . . . . Artifact . | . . . . Weapon 5 | 2 . . 3 Energy Gun 2 | 1 . . 1 Energy Cannon . | . . . . Ballistic Gun 2 | 1 . . 1 Ballistic Cannon . | . . . . Launcher . | . . . . Special Weapon . | . . . . Impact Weapon . | . . . . Slashing Weapon 1 | . . . 1 Piercing Weapon . | . . . . Special Melee Weapon . | . . . . Unidentified Prototypes . | . . . . Parts Lost 12 | . . . 12 Power 3 | . . . 3 Propulsion 4 | . . . 4 Utility 2 | . . . 2 Weapon 3 | . . . 3 Highest Loss Streak 7 | . . . 7 To Critical Strikes . | . . . . Average Slot Usage (%) 87 | . 99 100 82 Engine 11 | . 14 14 9 Treads 13 | . 27 28 7 Leg 12 | . . . 18 Device 13 | . 2 14 15 Storage 11 | . 14 14 11 Processor 1 | . 11 . . Energy Gun 9 | . 14 14 6 Ballistic Gun 8 | . 14 14 5 Slashing Weapon 4 | . . . 6 Peak Build Rating 15 | 9 9 9 15 Average Rating 9 | 5 7 8 10 On Entrance 6 | . 9 7 9 Naked Turns . | . . . . Heaviest Build 19 | 12 12 12 19 Greatest Support 40 | 40 40 20 30 Greatest Overweight (x) 3 | 3 . . 3 Average Overweight (x) . | . . . . Largest Inventory Capacity 8 | 8 8 8 8 Average Capacity 7 | 7 8 8 8 Most Carried 5 | 3 5 5 5 Average Carried 3 | 2 4 4 4 Final Capacity 8 | 8 8 8 8 Final Carried 5 | 3 5 4 5 Class Distribution -------------------- 65% | Mutant 34% | Scavenger-Mutant Dominant Class ---------------- Mutant | -10/Materials Mutant | -10/Mines Scavenger-Mutant | -9/Materials Resources | -11 -10 -10 -9 ----------- Run | Yrd Mat Min Mat Matter Collected 442 | 224 27 63 128 Remotely . | . . . . Salvage Created 807 | 15 27 . 765 Parts 59 | 4 3 . 52 Haulers Intercepted . | . . . . Recyclers Shooed 1 | . . . 1 Parts Field Recycled . | . . . . Retrieved Matter . | . . . . Parts Self-Destructed . | . . . . Prevented . | . . . . Kills | -11 -10 -10 -9 ------- Run | Yrd Mat Min Mat Combat Hostiles Destroyed 19 | . . . 19 Melee 12 | . . . 12 Guns 7 | . . . 7 Classes Destroyed 8 | 1 1 . 6 Worker 1 | . . . 1 Tunneler 2 | 1 . . 1 Recycler 1 | . . . 1 Watcher 2 | . 1 . 1 Swarmer 7 | . . . 7 Grunt 10 | . . . 10 Duelist 1 | . . . 1 Sentry 1 | . . . 1 Best Kill Streak 8 | 1 1 . 8 Combat Bots Only 7 | . . . 7 Max Kills in Single Turn 1 | 1 1 . 1 Gunslinging . | . . . . Exploded . | . . . . Melee 1 | . . . 1 Uniques/NPCs Destroyed . | . . . . Combat | -11 -10 -10 -9 -------- Run | Yrd Mat Min Mat Hostile Shots Fired 157 | . . . 157 Missed 31 | . . . 31 Damage Taken 1379 | . . . 1379 Core 402 | . . . 402 Absorbed by Shields . | . . . . Core Remaining (%) 100 | 100 . 100 . Volleys Fired 75 | 3 2 . 70 Largest 2 | 2 2 . 2 Hottest 70 | 70 70 . 70 Shots Fired 87 | 6 4 . 77 Gun 87 | 6 4 . 77 Cannon . | . . . . Launcher . | . . . . Special . | . . . . Kinetic 33 | 3 2 . 28 Thermal 54 | 3 2 . 49 Explosive . | . . . . Electromagnetic . | . . . . Robot Hit Streak 9 | 5 6 . 9 Robot Miss Streak 4 | . 1 . 4 Penetration Max . | . . . . Secondary Targets . | . . . . Shots Hit Robots 82 | 5 2 . 75 Core Hits 40 | 2 1 . 37 Critical Kills 1 | . 1 . . Critical Parts Destroyed . | . . . . Critical Strikes 8 | . 1 . 7 Burn 6 | . . . 6 Destroy 1 | . 1 . . Sever 1 | . . . 1 Melee Attacks 35 | . . . 35 Impact . | . . . . Slashing 35 | . . . 35 Piercing . | . . . . Sneak Attacks 1 | . . . 1 Combat Hostiles . | . . . . Follow-up Attacks . | . . . . Damage Inflicted 1433 | 50 18 . 1365 Guns 662 | 50 18 . 594 Cannons . | . . . . Explosions . | . . . . Melee 763 | . . . 763 Ramming 8 | . . . 8 Kinetic 165 | 24 6 . 135 Thermal 497 | 26 12 . 459 Explosive . | . . . . Electromagnetic . | . . . . Impact . | . . . . Slashing 763 | . . . 763 Piercing . | . . . . Highest Corruption . | . . . . Average Corruption . | . . . . Corruption Purged . | . . . . Corruption Blocked . | . . . . Overload Shots . | . . . . Overflow Damage 47 | . . . 47 Projectiles . | . . . . Explosions . | . . . . Melee 47 | . . . 47 Knockbacks . | . . . . Impact . | . . . . Kinetic . | . . . . Secondary . | . . . . Self-Inflicted Damage 3 | . . . 3 Shots . | . . . . Rammed 3 | . . . 3 Targets Rammed 3 | . . . 3 Kicked . | . . . . Crushed . | . . . . Highest Temperature 107 | 40 30 . 107 Average Temperature 23 | 19 18 . 24 Received Heat Transfer 423 | . . . 423 Siege Activations . | . . . . Robots Corrupted . | . . . . Combat Hostiles . | . . . . Parts Fried . | . . . . Impact Corruptions . | . . . . Robots Melted . | . . . . Combat Hostiles . | . . . . Parts Melted 3 | . . . 3 Heat Transferred 1813 | 74 37 . 1702 Parts Sabotaged . | . . . . Parts Stolen . | . . . . Parts Stripped . | . . . . Power Chain Reactions . | . . . . Alert | -11 -10 -10 -9 ------- Run | Yrd Mat Min Mat Peak Influence 310 | 5 25 9 310 Initial 9 | . 3 9 3 Average 67 | 1 19 9 97 Maximum Alert Level 1 | . . . 1 Low Security (%) 91 | 100 100 100 86 Level 1 8 | . . . 13 Level 2 . | . . . . Level 3 . | . . . . Level 4 . | . . . . Level 5 . | . . . . High Security . | . . . . Max Security . | . . . . Squads Dispatched 2 | . . . 2 Investigation . | . . . . Extermination . | . . . . Reinforcement 2 | . . . 2 Assault . | . . . . Garrison . | . . . . Intercept . | . . . . Searches Triggered . | . . . . Construction Impeded . | . . . . Haulers Reinforced . | . . . . Active Scanning Responses . | . . . . Cargo Convoy Interrupts . | . . . . Stealth | -11 -10 -10 -9 --------- Run | Yrd Mat Min Mat Distress Signals 2 | . . . 2 Communications Jammed . | . . . . Distress Signals . | . . . . Times Spotted 34 | . 2 . 32 Peak Tracking Total 5 | . 1 . 5 Tactical Retreats 1 | . . . 1 Traps | -11 -10 -10 -9 ------- Run | Yrd Mat Min Mat Traps Triggered 1 | . 1 . . Indirectly . | . . . . Trap Hack Attempts . | . . . . Triggered . | . . . . Disarmed . | . . . . Reprogrammed . | . . . . Reused . | . . . . Traps Extracted . | . . . . Installed . | . . . . Triggered . | . . . . Machines | -11 -10 -10 -9 ---------- Run | Yrd Mat Min Mat Machines Disabled 1 | . . . 1 Max in Single Turn 1 | . . . 1 Machines Repaired . | . . . . Machines Dismantled . | . . . . Machines Sabotaged . | . . . . Overloaded Fab Kills . | . . . . Hacking | -11 -10 -10 -9 --------- Run | Yrd Mat Min Mat Machines Accessed 3 | . 2 . 1 Terminals 3 | . 2 . 1 Fabricators . | . . . . Repair Stations . | . . . . Recycling Units . | . . . . Scanalyzers . | . . . . Garrison Access . | . . . . Total Hacks 7 | . 5 . 2 Successful 3 | . 1 . 2 Failed 4 | . 4 . . Catastrophic 2 | . 2 . . Database Lockouts . | . . . . Manual 2 | . 1 . 1 Terminals 7 | . 5 . 2 Fabricators . | . . . . Repair Stations . | . . . . Recycling Units . | . . . . Scanalyzers . | . . . . Garrison Access . | . . . . Terminal Hacks 3 | . 1 . 2 Terminal Index 1 | . . . 1 Zone Layout 2 | . 1 . 1 Fabricator Hacks . | . . . . Repair Station Hacks . | . . . . Recycling Unit Hacks . | . . . . Scanalyzer . | . . . . Garrison Access Hacks . | . . . . Unauthorized Hacks . | . . . . Terminals . | . . . . Fabricators . | . . . . Repair Stations . | . . . . Recycling Units . | . . . . Scanalyzers . | . . . . Garrison Access . | . . . . Data Cores Recovered . | . . . . Used . | . . . . Hacking Detections 3 | . 2 . 1 Full Trace Events . | . . . . Feedback Events . | . . . . Feedback Blocked . | . . . . Robot Schematics Acquired . | . . . . Robots Built . | . . . . Authchips . | . . . . Time . | . . . . Total Robot Build Rating . | . . . . Part Schematics Acquired . | . . . . Parts Built . | . . . . Authchips . | . . . . Time . | . . . . Total Part Build Rating . | . . . . Parts Repaired . | . . . . Time . | . . . . Parts Recycled . | . . . . Recycled Matter . | . . . . Retrieved Matter . | . . . . Retrieved Components . | . . . . Parts Scanalyzed . | . . . . Part Schematics Acquired . | . . . . Parts Damaged . | . . . . Bothacking | -11 -10 -10 -9 ------------ Run | Yrd Mat Min Mat Used RIF Installer . | . . . . Robots Hacked . | . . . . Non-combat . | . . . . Combat . | . . . . Robot Hacks Applied . | . . . . Relay Couplers Released . | . . . . Fabnet Peak Effective % . | . . . . Robots Rewired . | . . . . Allies Hacked . | . . . . Hacks Repelled . | . . . . Allies | -11 -10 -10 -9 -------- Run | Yrd Mat Min Mat Total Allies . | . . . . Largest Group . | . . . . Highest-Rated Group . | . . . . Highest-Rated Ally . | . . . . Total Orders . | . . . . Ally Attacks . | . . . . Total Damage . | . . . . Kills . | . . . . Allies Corrupted . | . . . . Allies Melted . | . . . . Intel | -11 -10 -10 -9 ------- Run | Yrd Mat Min Mat Robot Analysis Total . | . . . . Derelict Logs Recovered 1 | . . 1 . Drone Launches . | . . . . Drone Recoveries . | . . . . Exploration | -11 -10 -10 -9 ------------- Run | Yrd Mat Min Mat Turns Passed 1105 | 71 150 169 715 Spaces Moved 499 | 44 79 75 301 Core 47 | 24 . . 23 Treads 290 | 20 79 75 116 Legs 162 | . . . 162 Wheels . | . . . . Hover . | . . . . Flight . | . . . . Fastest Speed 50 | 50 160 160 100 Average Speed 140 | 110 160 160 134 Slowest Speed 200 | 200 160 160 200 Overloaded Moves . | . . . . Propulsion Burnouts . | . . . . Robots Hopped . | . . . . Cave-ins Triggered . | . . . . Exploration Rate (%) 17 | 3 19 20 26 Regions Visited 3 Branch Regions 1 Pre-discovered Areas . | . . . . Known Exits Taken 1 | . 1 . . Unknown Exits Taken 2 | 1 . 1 . Scrap Searched . | . . . . Spaces Dug . | . . . . Terrain Destroyed . | . . . . Melee . | . . . . Projectile . | . . . . AOE . | . . . . Terrain Rammed . | . . . . Walls Destroyed . | . . . . Machines Disabled . | . . . . Actions | -11 -10 -10 -9 --------- Run | Yrd Mat Min Mat Total 761 | 57 98 124 482 Wait 121 | . 14 49 58 Move 496 | 43 78 74 301 Hop . | . . . . Pick Up 8 | 3 2 . 3 Fast Attach 14 | 7 1 . 6 Attach 3 | . . . 3 Detach . | . . . . Swap 6 | 1 1 1 3 Drop . | . . . . Fire 75 | 3 2 . 70 Melee 35 | . . . 35 Ram 2 | . . . 2 Kick . | . . . . Crush 1 | . . . 1 Escape Stasis . | . . . . Rewire . | . . . . Trap . | . . . . Miscellaneous . | . . . . Route ------- -11/Scrapyard -10/Materials -10/Mines -9/Materials (discovered 1 exit: [*Mat]) History --------- Turn | Location | Event 9 | -11/Scrapyard | Discovered new exit (range 16) 72 | -11/Scrapyard | Entered Materials 143 | -10/Materials | Discovered new exit (range 15) 215 | -10/Materials | Identified exit to Mines 222 | -10/Materials | Entered Mines 230 | -10/Mines | Assembled infested the area 235 | -10/Mines | Assisted by a Guerilla fighting off Assembled 261 | -10/Mines | Learned Materials trap positions 285 | -10/Mines | Discovered new exit (range 10) 302 | -10/Mines | Build established: Mutant 391 | -10/Mines | Entered Materials 391 | -9/Materials | Evolved 2 slots: Propulsion x1, Utility x1 392 | -9/Materials | Loaded intel: 22 trap records 699 | -9/Materials | Lost 4 parts (1p1n1u1w) 700 | -9/Materials | Destroyed 7 combat bots 978 | -9/Materials | Build established: Scavenger-Mutant 1030 | -9/Materials | Discovered new exit (range 10) 1062 | -9/Materials | Core integrity fell below 50% 1088 | -9/Materials | Core integrity fell below 20% 1106 | -9/Materials | Destroyed by S-10 Pest with Light Assault Rifle Last Messages --------------- 01030_ EXIT=FOUND 01031_ Imp. Terrain Scanner destroyed. 01037_ S-10 Pest destroyed. 01045_ Aluminum Leg destroyed. 01048_ S-10 Pest destroyed. 01049_ M-13 Machinist repairs G-34 Mercenary. 01055_ Aluminum Leg destroyed. 01057_ Imp. Ion Engine destroyed. 01062_ Beam Rifle destroyed. 01067_ C-30 ARC bursts open, deploying its payload. 01067_ G-47 Trooper unfolds itself. 01067_ G-34 Mercenary unfolds itself. 01069_ G-34 Mercenary destroyed. 01074_ G-34 Mercenary Ion Engine severed. 01076_ Aluminum Leg destroyed. 01079_ G-34 Mercenary destroyed. 01082_ Katana destroyed. 01084_ Slammed into G-47 Trooper. 01087_ Slammed into G-34 Mercenary. Map ----- +----------------------------------------------------+ | ????#?????# ##### + | | ??#???????# #???################### ## | | ??????????# #?#??#??#???? ? # #? | | ??????????# #???????#????? + !!% #? | | ??????????# ##???????#?#??? # !! #? | | ??????????# ########????? ? # !! #? | | ??????????# #????#?? # #? | | ??????????# ? #??????? # #? | | ??????????# ?? #? ????? # ! #? | | ?????????######??# #??????? # ## | | ?????????????????# #?? ????######## ## | | ????#??????#?????#" ## ???????????# ## | | ???###############%" ###+############ """"" #? | | ???# * " %"""" # | | ???# [%! """"" + | | ???# %*%* """"" # | | ?? + ###+############### """"? # | | ???# #=T[=%%#?????#????# """"?? # | | ???# < %#[%=!= #?#?#??????# """"??????? | | ???# ==#*"""[ #???????#??# ?????? | | ???????# *%+*""" #???????#?## ?? ?? | | ???????# =%#[""" ##?#?????#?# ???? | | ???????+ [#* #??????????# ??? | | ???????#####+##########???????#?# ??? | | ?????? ?# ################ ??? | | ???"????# s @ ######+###???? | | ????????# ####################????????????? | | ????????# ##?????#????????????????????????? | | ????????# #????????#??????????????????????? | | ????????# #???????????????????????????????? | | ????????# #???????????????????????????????? | | ????????# #???????????????????????????????? | | ????????# #???????????????????????????????? | | ????????##########???#???????????????????????????? | | ?????????????????????????????????????????????????? | | | | | | | | | | | | | | | | | | | | | | | | | | | | | | | +----------------------------------------------------+ Best States ------------- Heat Dissipation 38 Energy Generation 12 Energy Capacity 265 Matter Stores 300 Matter Capacity 300 Sight Range 16 Terrain Scan Range 16 Terrain Scan Density 10 Evasion (%) 55 Recoil Reduction 2 Item Schematics ----------------- None Robot Schematics ------------------ None Fabricated ------------ Nothing Alien Tech Used ----------------- None Achievements -------------- None Challenges ------------ None Game ------ Seed TractorDisruptionTelecube Manual? 0 Play Time 00:14:18 Cumulative 23.2 hours Start 2024.12.19 @ 16:46:51 End 2024.12.19 @ 16:56:47 Sessions 1 Manual Loads 0 Difficulty Rogue Special Mode None Game No. 71 Rogue 71 Adventurer 0 Explorer 0 Win Type - Total 0 Types 0/0/0/0/0/0/0/0/0 Lore% 11 Gallery% 25 Achievement% 21 Wizard Run 0 Options --------- Layout 2 ASCII 0 Keyboard 1 Movement Numpad Keybinds 1 Fullscreen 2 Font 24/Smallcaps Map View 25x22 Zoom Use 44% Tactical HUD 1 Map Filters NONE Filters NONE Steam 1 RUN: 33efc5c6-d636-46a6-8f6b-c8a9e58f06b7